bitfinex-derivatives/quotes_BTCF0:USTF0_20241110
["timestamp","ask_amount","ask_price","bid_price","bid_amount"]
[1731218770902,0.3608,79117.0,79106.0,0.22079395]
[1731218771098,0.3608,79117.0,79103.0,0.3608]
[1731218771099,0.01138574,79119.0,79109.0,0.18866676]
[1731218771404,0.01138574,79119.0,79108.0,0.18866676]
[1731218771405,0.3608,79116.0,79108.0,0.18866676]
[1731218771607,0.3608,79116.0,79110.0,0.19006109]
[1731218771803,0.3608,79116.0,79109.0,0.19006109]
[1731218772003,0.3608,79116.0,79104.0,0.36144]
[1731218772004,0.3608,79116.0,79111.0,0.19006109]
[1731218772400,0.3608,79116.0,79110.0,0.18899343]
[1731218772600,0.3608,79116.0,79112.0,0.18899343]
[1731218772803,0.3608,79116.0,79111.0,0.18899343]
[1731218773004,0.3608,79116.0,79111.0,0.16599343]
[1731218773211,0.3608,79116.0,79109.0,0.18588]
[1731218773402,0.3608,79116.0,79112.0,0.19042076]
[1731218773703,0.3608,79116.0,79111.0,0.19042076]
[1731218773913,0.3608,79116.0,79109.0,0.18588]
[1731218774103,0.3608,79116.0,79113.0,0.19042076]
[1731218774297,0.3608,79116.0,79112.0,0.19042076]
[1731218774503,0.01138574,79119.0,79114.0,0.18861072]
[1731218774805,0.01138574,79119.0,79113.0,0.18861072]
[1731218775006,0.01138574,79119.0,79115.0,0.18861072]
[1731218775396,0.01138574,79119.0,79113.0,0.18963715]
[1731218775602,0.3608,79114.0,79112.0,0.18963715]
[1731218775901,0.3608,79114.0,79110.0,0.37551715]
[1731218776099,0.22079395,79112.0,79099.0,0.00012206]
[1731218776307,0.3608,79114.0,79111.0,0.19031854]
[1731218776602,0.3608,79114.0,79105.0,0.19031854]
[1731218776812,0.3608,79114.0,79112.0,0.19031854]
[1731218777205,0.3608,79114.0,79101.0,0.18588]
[1731218777404,0.3608,79114.0,79113.0,0.19053351]
[1731218777710,0.3608,79114.0,79106.0,0.19053351]
[1731218777911,0.3608,79114.0,79103.0,0.23945735]
[1731218778097,0.3608,79114.0,79109.0,0.05056314]
[1731218778414,0.3608,79114.0,79110.0,0.1895224]
[1731218780104,0.3608,79111.0,79110.0,0.1895224]
[1731218780506,0.3721,79111.0,79110.0,0.1895224]
[1731218783204,0.3721,79111.0,79109.0,0.05056314]
[1731218783419,0.3721,79111.0,79110.0,0.18888508]
[1731218784502,0.38221,79111.0,79110.0,0.18888508]
[1731218785508,0.38221,79111.0,79110.0,0.23944758]
[1731218785810,0.38221,79111.0,79110.0,0.59944758]
[1731218787218,0.02141,79111.0,79110.0,0.59944758]
[1731218787614,0.02141,79111.0,79110.0,0.57644758]
[1731218789617,0.04583645,79111.0,79110.0,0.4105625]
[1731218791623,0.04583645,79111.0,79086.0,0.36]
[1731218791624,0.52308703,79111.0,79086.0,0.36]
[1731218791915,0.52308703,79111.0,79099.0,0.14753007]
[1731218791916,0.3608,79100.0,79099.0,0.14753007]
[1731218792120,0.09422079,79100.0,79099.0,0.50753007]
[1731218792310,0.0632488,79100.0,79099.0,0.54993149]
[1731218792514,0.09421658,79100.0,79099.0,0.54993149]
[1731218793008,0.09421736,79100.0,79099.0,0.54993149]
[1731218793815,0.09421736,79100.0,79099.0,0.61387445]
[1731218794517,0.10432736,79100.0,79099.0,0.61387445]
[1731218795021,0.1431447,79100.0,79099.0,0.61387445]
[1731218795514,0.10432736,79100.0,79099.0,0.61387445]
[1731218796317,0.10432842,79100.0,79099.0,0.61387445]
[1731218796714,0.07336025,79100.0,79099.0,0.61387445]
[1731218797914,0.10432806,79100.0,79099.0,0.61387445]
[1731218798823,0.07336025,79100.0,79099.0,0.61387445]
[1731218799723,0.04893235,79100.0,79099.0,0.61387445]
[1731218800318,0.04893235,79100.0,79099.0,0.97467445]
[1731218800526,0.04893235,79100.0,79099.0,0.61387445]
[1731218801518,0.0113,79111.0,79099.0,1.29395445]
[1731218801714,0.0113,79111.0,79107.0,0.3608]
[1731218801715,0.02442545,79110.0,79107.0,0.3608]
[1731218802025,0.0113,79111.0,79108.0,0.19049988]
[1731218802528,0.0113,79111.0,79100.0,0.1989]
[1731218802529,0.0113,79111.0,79106.0,0.18858512]
[1731218802821,0.0113,79111.0,79109.0,0.18858512]
[1731218803024,0.03096428,79110.0,79107.0,0.16558512]
[1731218803226,0.0113,79111.0,79110.0,0.18858512]
[1731218803534,0.0113,79111.0,79108.0,0.19017841]
[1731218803722,0.0113,79111.0,79110.0,0.19017841]
[1731218804118,0.0113,79111.0,79109.0,0.19017841]
[1731218804319,0.0113,79111.0,79106.0,0.3608]
[1731218804320,0.0113,79111.0,79110.0,0.19017841]
[1731218804620,0.04226331,79111.0,79107.0,0.18364]
[1731218804822,0.03096365,79110.0,79108.0,0.18914861]
[1731218805028,0.0113,79111.0,79107.0,0.18364]
[1731218805325,0.0113,79111.0,79109.0,0.18914861]
[1731218805520,0.0113,79111.0,79108.0,0.19016556]
[1731218805715,0.0113,79111.0,79107.0,0.1836]
[1731218805926,0.0113,79111.0,79110.0,0.19016556]
[1731218806125,0.04226358,79111.0,79110.0,0.3608]
[1731218806426,0.0113,79111.0,79110.0,0.19016556]
[1731218806625,0.0113,79111.0,79100.0,0.5436]
[1731218806829,0.2163,79110.0,79100.0,0.5436]
[1731218807025,0.0309665,79109.0,79107.0,0.18932547]
[1731218807225,0.0309665,79108.0,79100.0,0.73356547]
[1731218807421,0.03096709,79107.0,79100.0,0.5436]
[1731218807622,0.24096709,79106.0,79100.0,0.5436]
[1731218807823,0.03096709,79105.0,79100.0,0.5436]
[1731218808921,0.0113,79111.0,79104.0,0.14740801]
[1731218809129,0.0113,79111.0,79104.0,0.29481602]
[1731218809335,0.0113,79111.0,79110.0,0.14740801]
[1731218809826,0.0113,79111.0,79110.0,0.69798238]
[1731218810432,0.00011574,79119.0,79110.0,0.69798238]
[1731218810730,0.00011574,79119.0,79118.0,0.3608]
[1731218810928,0.00011574,79119.0,79118.0,0.54416]
[1731218811127,0.00011574,79119.0,79118.0,0.73488052]
[1731218813831,0.00011574,79119.0,79118.0,0.79738131]
[1731218814529,0.02453515,79119.0,79118.0,0.79738131]
[1731218815028,0.02453515,79119.0,79118.0,0.73488052]
[1731218815432,0.02453515,79119.0,79118.0,1.09488052]
[1731218816023,0.02453515,79119.0,79118.0,0.36]
[1731218816430,0.02453515,79119.0,79118.0,0.5483517]
[1731218816825,0.03107574,79119.0,79118.0,0.5483517]
[1731218817024,0.03464515,79119.0,79118.0,0.5483517]
[1731218817730,0.03464515,79119.0,79118.0,0.5253517]
[1731218820232,0.42584,79141.0,79118.0,0.93449955]
[1731218820432,0.22915547,79139.0,79130.0,0.3608]
[1731218820635,0.03095669,79138.0,79119.0,0.314]
[1731218820937,0.1982,79139.0,79131.0,0.18988478]
[1731218820938,0.03095669,79137.0,79131.0,0.18988478]
[1731218821129,0.14740801,79135.0,79125.0,0.18988478]
[1731218821331,0.3608,79127.0,79119.0,0.49732]
[1731218821529,0.03095669,79126.0,79119.0,0.314]
[1731218821835,0.03095669,79126.0,79120.0,0.18856505]
[1731218822436,0.03095669,79126.0,79119.0,0.314]
[1731218822638,0.069765,79126.0,79119.0,0.314]
[1731218823638,0.03095669,79125.0,79119.0,0.314]
[1731218823831,0.00091,79134.0,79124.0,0.14740801]
[1731218824027,0.03095859,79133.0,79124.0,0.14740801]
[1731218824229,0.03095859,79132.0,79125.0,0.19080148]
[1731218824537,0.03095859,79131.0,79125.0,0.19080148]
[1731218824741,0.03095859,79130.0,79125.0,0.19080148]
[1731218825034,0.03095859,79129.0,79120.0,0.18332]
[1731218825236,0.03095859,79128.0,79120.0,0.18332]
[1731218825431,0.03095859,79127.0,79120.0,0.18332]
[1731218825628,0.03095859,79126.0,79120.0,0.18332]
[1731218825837,0.03095859,79125.0,79116.0,0.314]
[1731218826033,0.00091,79134.0,79116.0,0.314]
[1731218826340,0.03095922,79133.0,79123.0,0.3608]
[1731218826537,0.03095922,79132.0,79123.0,0.3608]
[1731218826730,0.03095922,79131.0,79123.0,0.3608]
[1731218827038,0.03095922,79130.0,79123.0,0.3608]
[1731218827235,0.03095922,79129.0,79123.0,0.3608]
[1731218827435,0.03095815,79128.0,79124.0,0.18856806]
[1731218827637,0.00091,79134.0,79127.0,0.14740801]
[1731218827838,0.03095651,79133.0,79127.0,0.14740801]
[1731218828036,0.03095651,79132.0,79128.0,0.19056568]
[1731218828241,0.03095521,79131.0,79128.0,0.19056568]
[1731218828441,0.00091,79134.0,79128.0,0.19056568]
[1731218828636,0.03095464,79133.0,79128.0,0.19056568]
[1731218828937,0.00091,79134.0,79132.0,0.3608]
[1731218829133,0.00091,79134.0,79133.0,0.18332]
[1731218829332,0.00091,79134.0,79133.0,0.37164386]
[1731218829733,0.03186207,79134.0,79133.0,0.37164386]
[1731218829933,0.00091,79134.0,79133.0,0.37164386]
[1731218830148,0.00013628,79141.0,79133.0,0.75076386]
[1731218830438,0.00013628,79141.0,79140.0,0.50820801]
[1731218830833,0.00013628,79141.0,79140.0,0.69690985]
[1731218831240,0.00013628,79141.0,79140.0,1.07598985]
[1731218832538,0.00013628,79141.0,79140.0,0.69690985]
[1731218832740,0.00013628,79141.0,79140.0,1.07598985]
[1731218833040,0.00013628,79141.0,79140.0,0.90558184]
[1731218833237,0.00013628,79141.0,79140.0,0.52650184]
[1731218833442,0.03108455,79141.0,79140.0,0.52650184]
[1731218833645,0.00013628,79141.0,79140.0,0.3378]
[1731218833833,0.24738778,79141.0,79134.0,0.00016414]
[1731218834035,0.3608,79136.0,79134.0,0.00016414]
[1731218834235,0.06974845,79135.0,79119.0,0.314]
[1731218834640,0.06974845,79135.0,79119.0,0.50448977]
[1731218834841,0.3608,79129.0,79119.0,0.50448977]
[1731218835043,0.06974845,79128.0,79119.0,0.50448977]
[1731218835239,0.06974845,79128.0,79120.0,0.00015154]
[1731218835739,0.0309515,79127.0,79121.0,0.18907664]
[1731218835937,0.0309515,79126.0,79120.0,0.00015154]
[1731218836133,0.0309515,79125.0,79120.0,0.00015154]
[1731218836439,0.0309515,79124.0,79120.0,0.00015154]
[1731218836745,0.1997,79123.0,79120.0,0.00015154]
[1731218837132,0.1997,79123.0,79121.0,0.19068188]
[1731218837632,0.1997,79123.0,79122.0,0.3608]
[1731218837942,0.2161,79128.0,79122.0,0.5504414]
[1731218838142,0.2161,79128.0,79127.0,0.14740801]
[1731218838538,0.22273,79128.0,79127.0,0.33574671]
[1731218839040,0.22273,79128.0,79127.0,0.1883387]
[1731218839448,0.00663,79128.0,79123.0,0.5023387]
[1731218839637,0.00663,79128.0,79127.0,0.19012916]
[1731218840039,0.00663,79128.0,79123.0,0.314]
[1731218840239,0.00663,79128.0,79127.0,0.19012916]
[1731218840550,0.00663,79128.0,79123.0,0.314]
[1731218840752,0.00663,79128.0,79127.0,0.18991653]
[1731218840933,0.00663,79128.0,79123.0,0.314]
[1731218840934,0.00663,79128.0,79125.0,0.18991653]
[1731218841140,0.00663,79128.0,79127.0,0.18991653]
[1731218841438,0.00663,79128.0,79126.0,0.37275653]
[1731218841645,0.00663,79128.0,79126.0,0.18284]
[1731218841945,0.00663,79128.0,79127.0,0.18981107]
[1731218843348,0.03104916,79128.0,79127.0,0.18981107]
[1731218843647,0.39184916,79128.0,79123.0,0.49748]
[1731218843845,0.02441916,79127.0,79123.0,0.49684]
[1731218844038,0.02441916,79127.0,79123.0,0.314]
[1731218844241,0.2009,79126.0,79117.0,0.06299723]
[1731218844449,0.0553805,79125.0,79117.0,0.06299723]
[1731218844746,0.09418904,79125.0,79117.0,0.06299723]
[1731218845247,0.0553805,79124.0,79117.0,0.06299723]
[1731218845442,0.0553805,79123.0,79117.0,0.06299723]
[1731218845648,0.2615805,79122.0,79117.0,0.06299723]
[1731218845848,0.2541805,79121.0,79117.0,0.06299723]
[1731218846845,0.2541805,79121.0,79113.0,0.314]
[1731218847239,1.03295303,79121.0,79113.0,0.314]
[1731218847446,0.09419303,79120.0,79113.0,0.314]
[1731218847738,0.09419303,79120.0,79114.0,0.19063197]
[1731218848348,0.09419303,79120.0,79115.0,0.00013637]
[1731218849243,0.09419303,79120.0,79104.0,0.29303223]
[1731218849745,0.09419303,79120.0,79113.0,0.18921767]
[1731218850048,0.00064,79121.0,79119.0,0.14740801]
[1731218850260,0.02442112,79120.0,79119.0,0.14740801]
[1731218850545,0.02442112,79120.0,79119.0,0.5191373]
[1731218850750,0.02441689,79120.0,79119.0,0.5191373]
[1731218851249,0.00663,79128.0,79119.0,0.5191373]
[1731218851550,0.00663,79128.0,79127.0,0.3608]
[1731218851948,0.00663,79128.0,79127.0,0.54918742]
[1731218852653,0.10820744,79191.0,79151.0,0.06850686]
[1731218852852,0.06173124,79183.0,79175.0,0.14740801]
[1731218853147,0.3608,79202.0,79178.0,0.3608]
[1731218853447,0.3608,79202.0,79196.0,0.14740801]
[1731218853448,0.05533195,79201.0,79196.0,0.14740801]
[1731218853648,0.05533195,79201.0,79197.0,0.00016404]
[1731218853649,0.03093234,79201.0,79197.0,0.00016404]
[1731218853847,0.03093234,79201.0,79197.0,0.18878103]
[1731218854246,0.03093234,79201.0,79200.0,0.3608]
[1731218854745,0.03093234,79201.0,79200.0,0.54936211]
[1731218855539,0.00365834,79201.0,79200.0,0.99086759]
[1731218855743,0.00015867,79218.0,79200.0,1.51139732]
[1731218855944,0.00015867,79218.0,79217.0,0.3608]
[1731218856147,0.00015867,79218.0,79217.0,0.54356]
[1731218856352,0.00015867,79218.0,79217.0,0.732758]
[1731218858451,0.00015867,79218.0,79217.0,0.79749312]
[1731218859250,0.00015867,79218.0,79217.0,0.61473312]
[1731218859445,0.00015867,79218.0,79217.0,0.189198]
[1731218859755,0.00015867,79218.0,79212.0,0.06313048]
[1731218859952,0.00015867,79218.0,79208.0,0.18911519]
[1731218860150,0.00015867,79218.0,79217.0,0.18911519]
[1731218860350,0.00015867,79218.0,79208.0,0.18911519]
[1731218860546,0.00015867,79218.0,79217.0,0.18962572]
[1731218860954,0.00015867,79218.0,79216.0,0.18962572]
[1731218861149,0.00015867,79218.0,79207.0,0.0620881]
[1731218861345,0.00015867,79218.0,79215.0,0.18962572]
[1731218861545,0.00015867,79218.0,79210.0,0.18962572]
[1731218861748,0.3608,79213.0,79207.0,0.18900995]
[1731218861956,0.3608,79213.0,79205.0,0.18900995]
[1731218862155,0.3608,79213.0,79186.0,0.22052973]
[1731218862156,0.3423,79206.0,79180.0,0.3608]
[1731218862351,0.3423,79206.0,79182.0,0.18268]
[1731218862549,0.3423,79206.0,79187.0,0.22052973]
[1731218862756,0.3423,79206.0,79198.0,0.18819941]
[1731218863453,0.3608,79211.0,79198.0,0.18819941]
[1731218865054,0.3608,79211.0,79198.0,0.16519941]
[1731218866955,0.42410303,79211.0,79198.0,0.16519941]
[1731218867357,0.00015867,79218.0,79203.0,0.22052973]
[1731218867549,0.00015867,79218.0,79199.0,0.3608]
[1731218867754,0.00015867,79218.0,79204.0,0.18923164]
[1731218868056,0.00015867,79218.0,79200.0,0.18923164]
[1731218868259,0.06329111,79218.0,79205.0,0.18923164]
[1731218868456,0.06329111,79218.0,79199.0,0.3608]
[1731218868457,0.00015867,79218.0,79200.0,0.18923164]
[1731218868655,0.00015867,79218.0,79199.0,0.3608]
[1731218868851,0.00015867,79218.0,79206.0,0.18863343]
[1731218869162,0.00015867,79218.0,79200.0,0.18863343]
[1731218869354,0.00015867,79218.0,79207.0,0.18863343]
[1731218869557,0.00015867,79218.0,79201.0,0.18863343]
[1731218869755,0.00015867,79218.0,79211.0,0.3608]
[1731218869952,0.00015867,79218.0,79208.0,0.18851893]
[1731218870251,0.00015867,79218.0,79211.0,0.3608]
[1731218872162,0.00015867,79218.0,79212.0,0.18947675]
[1731218873762,0.00015867,79218.0,79210.0,0.0634267]
[1731218873959,0.00015867,79218.0,79205.0,0.18989403]
[1731218874266,0.00015867,79218.0,79213.0,0.18989403]
[1731218874469,0.00015867,79218.0,79210.0,0.18989403]
[1731218874470,0.00015867,79218.0,79210.0,0.46192626]
[1731218874669,0.00015867,79218.0,79214.0,0.18936339]
[1731218874871,0.00015867,79218.0,79211.0,0.18936339]
[1731218875168,0.00015867,79218.0,79210.0,0.27203223]
[1731218875664,0.00015867,79218.0,79211.0,0.18936339]
[1731218875969,0.00015867,79218.0,79204.0,0.18871411]
[1731218876168,0.00015867,79218.0,79211.0,0.3608]
[1731218876466,0.00015867,79218.0,79212.0,0.18871411]
[1731218877760,0.00015867,79218.0,79212.0,0.16571411]
[1731218878563,0.00015867,79218.0,79213.0,0.37872]
[1731218878767,0.00015867,79218.0,79217.0,0.3608]
[1731218879166,0.00015867,79218.0,79217.0,0.54903556]
[1731218879363,0.00015867,79218.0,79217.0,0.18823556]
[1731218879567,0.00015867,79218.0,79217.0,0.40876529]
[1731218879761,0.00015867,79218.0,79217.0,0.22052973]
[1731218879963,0.00015867,79218.0,79217.0,0.41019116]
[1731218880167,0.00015867,79218.0,79217.0,0.59219116]
[1731218880862,0.00015867,79218.0,79217.0,0.41019116]
[1731218881068,0.00015867,79218.0,79217.0,0.59219116]
[1731218883576,0.00015867,79218.0,79217.0,0.86422339]
[1731218884671,0.00015867,79218.0,79217.0,0.59219116]
[1731218885269,0.00015867,79218.0,79217.0,0.51861245]
[1731218885468,0.00015867,79218.0,79217.0,0.79064468]
[1731218885875,0.00015867,79218.0,79217.0,0.51861245]
[1731218887375,0.00015867,79218.0,79217.0,0.79064468]
[1731218889270,0.00015867,79218.0,79217.0,1.16936468]
[1731218889466,0.3608,79237.0,79217.0,1.16936468]
[1731218889672,0.3608,79237.0,79232.0,0.14695102]
[1731218890474,0.36095318,79237.0,79230.0,0.18196]
[1731218890777,0.36095318,79237.0,79228.0,0.18196]
[1731218891373,0.36095318,79237.0,79230.0,0.14695102]
[1731218892084,0.36095318,79237.0,79236.0,0.14695102]
[1731218893084,0.36095318,79237.0,79236.0,0.12395102]
[1731218894477,0.00015318,79237.0,79236.0,0.12395102]
[1731218894677,0.00015318,79237.0,79232.0,0.3608]
[1731218894881,0.00015318,79237.0,79234.0,0.14695102]
[1731218895382,0.3608,79236.0,79231.0,0.14695102]
[1731218896884,0.02438798,79235.0,79231.0,0.14695102]
[1731218897086,0.02438798,79234.0,79231.0,0.14695102]
[1731218897287,0.02438798,79233.0,79231.0,0.14695102]
[1731218897482,0.02438798,79232.0,79231.0,0.14695102]
[1731218897981,0.02438798,79235.0,79231.0,0.14695102]
[1731218898181,0.02438798,79234.0,79231.0,0.14695102]
[1731218898379,0.02438798,79233.0,79231.0,0.14695102]
[1731218898580,0.02438798,79232.0,79231.0,0.14695102]
[1731218899180,0.02438798,79235.0,79231.0,0.14695102]
[1731218899382,0.02438798,79234.0,79231.0,0.14695102]
[1731218899578,0.02438798,79233.0,79231.0,0.14695102]
[1731218899884,0.02438798,79232.0,79231.0,0.14695102]
[1731218900279,0.02438798,79234.0,79231.0,0.14695102]
[1731218900477,0.02438798,79234.0,79224.0,0.42335884]
[1731218900478,0.02438798,79233.0,79224.0,0.42335884]
[1731218900680,0.66028819,79232.0,79224.0,0.50775102]
[1731218900987,0.6359,79229.0,79224.0,0.50775102]
[1731218901178,0.6359,79229.0,79197.0,0.03770365]
[1731218901179,0.9967,79226.0,79219.0,0.1812]
[1731218901377,0.21988938,79225.0,79217.0,0.14695102]
[1731218901579,0.02438938,79224.0,79217.0,0.33745758]
[1731218901785,0.02438938,79224.0,79223.0,0.14695102]
[1731218901983,0.05531101,79224.0,79223.0,0.14695102]
[1731218902785,0.69121101,79224.0,79219.0,0.3608]
[1731218902984,0.02438938,79223.0,79219.0,0.3608]
[1731218903489,0.6359,79222.0,79219.0,0.3608]
[1731218903683,0.02438938,79221.0,79219.0,0.3608]
[1731218904080,0.6359,79220.0,79219.0,0.3608]
[1731218906381,0.02439056,79220.0,79219.0,0.55133666]
[1731218906581,0.63662,79225.0,79219.0,0.55133666]
[1731218906889,0.02438784,79224.0,79223.0,0.3608]
[1731218907284,0.02438938,79224.0,79219.0,0.00064]
[1731218907585,0.22359078,79223.0,79213.0,0.3608]
[1731218907790,0.02439078,79222.0,79216.0,0.14695102]
[1731218908091,0.02439078,79222.0,79217.0,0.18919585]
[1731218910281,0.1992,79223.0,79217.0,0.18919585]
[1731218910282,0.05531165,79221.0,79217.0,0.18919585]
[1731218910484,0.05531165,79220.0,79217.0,0.18919585]
[1731218910682,0.02439067,79219.0,79217.0,0.18919585]
[1731218910983,0.05531048,79218.0,79217.0,0.18919585]
[1731218911191,0.02439067,79218.0,79217.0,0.18919585]
[1731218911496,0.05530955,79218.0,79217.0,0.18919585]
[1731218911696,0.02439067,79218.0,79217.0,0.46122808]
[1731218913397,0.02439067,79218.0,79217.0,0.64242808]
[1731218914788,0.02439067,79218.0,79217.0,0.46122808]
[1731218914990,0.02439067,79218.0,79217.0,0.64242808]
[1731218916092,0.6359,79225.0,79217.0,0.64242808]
[1731218916293,0.9967,79229.0,79221.0,0.3608]
[1731218916691,0.9967,79229.0,79222.0,0.18899086]
[1731218917790,0.09406361,79228.0,79222.0,0.18899086]
[1731218917999,0.05530848,79228.0,79222.0,0.18899086]
[1731218918798,0.05530848,79228.0,79222.0,0.54979086]
[1731218920399,0.05530848,79228.0,79225.0,0.14695102]
[1731218920801,0.05530848,79228.0,79226.0,0.18935762]
[1731218921399,0.63658,79229.0,79226.0,0.18935762]
[1731218921602,0.6359,79229.0,79226.0,0.18935762]
[1731218921799,0.6359,79229.0,79223.0,0.18807588]
[1731218922109,0.6359,79234.0,79222.0,0.42338666]
[1731218922402,0.6359,79234.0,79224.0,0.18807588]
[1731218922606,0.6359,79234.0,79223.0,0.18807588]
[1731218922801,0.09405823,79233.0,79225.0,0.05048911]
[1731218923002,0.09405823,79232.0,79225.0,0.23964986]
[1731218923201,0.09405823,79231.0,79225.0,0.05048911]
[1731218923403,0.09405823,79230.0,79225.0,0.05048911]
[1731218923602,0.09405823,79229.0,79225.0,0.05048911]
[1731218923899,0.05530532,79228.0,79225.0,0.05048911]
[1731218924102,0.05530532,79227.0,79225.0,0.05048911]
[1731218924301,0.05530532,79226.0,79225.0,0.05048911]
[1731218925698,0.0940598,79226.0,79225.0,0.05048911]
[1731218926503,0.09406173,79226.0,79225.0,0.05048911]
[1731218929514,0.05530738,79226.0,79225.0,0.05048911]
[1731218929810,0.05530738,79226.0,79209.0,0.3608]
[1731218929811,1.25559559,79226.0,79207.0,0.1812]
[1731218930007,1.25559559,79226.0,79212.0,0.14695102]
[1731218930008,0.30946457,79225.0,79212.0,0.14695102]
[1731218930200,0.05530738,79224.0,79223.0,0.18866473]
[1731218930404,0.02438879,79224.0,79221.0,0.14695102]
[1731218930604,0.63654,79226.0,79221.0,0.14695102]
[1731218930605,0.05530738,79223.0,79221.0,0.14695102]
[1731218930805,0.05530738,79222.0,79221.0,0.14695102]
[1731218931005,0.6359,79226.0,79213.0,0.54264]
[1731218931006,0.05530738,79225.0,79222.0,0.1888825]
[1731218931201,0.05531072,79224.0,79222.0,0.1888825]
[1731218931504,0.05531072,79223.0,79215.0,0.32723102]
[1731218931710,0.05531072,79222.0,79215.0,0.32723102]
[1731218932007,0.05531072,79221.0,79216.0,0.18959943]
[1731218932307,0.09406758,79220.0,79216.0,0.18959943]
[1731218932501,0.05531072,79219.0,79216.0,0.18959943]
[1731218932697,0.05531072,79219.0,79215.0,0.44211181]
[1731218932698,0.09406842,79218.0,79215.0,0.05049548]
[1731218932902,0.02439026,79217.0,79215.0,0.05049548]
[1731218933101,0.23429026,79217.0,79215.0,0.05049548]
[1731218933306,0.23619026,79216.0,79215.0,0.05049548]
[1731218933497,0.26711427,79216.0,79215.0,0.05049548]
[1731218933898,0.90301427,79216.0,79215.0,0.05049548]
[1731218934099,0.94177613,79216.0,79215.0,0.05049548]
[1731218934507,0.98706879,79216.0,79215.0,0.05049548]
[1731218935416,1.12509112,79216.0,79215.0,0.05049548]
[1731218935916,1.18698543,79216.0,79215.0,0.05049548]
[1731218936308,0.96490858,79216.0,79215.0,0.05049548]
[1731218937905,1.0036714,79216.0,79215.0,0.05049548]
[1731218938512,1.04896614,79216.0,79215.0,0.05049548]
[1731218940104,1.18687456,79216.0,79215.0,0.05049548]
[1731218940509,1.14158144,79216.0,79215.0,0.05049548]
[1731218940912,1.04896538,79216.0,79215.0,0.05049548]
[1731218941118,1.04896789,79216.0,79201.0,0.00189372]
[1731218941418,0.14695102,79205.0,79201.0,0.00189372]
[1731218941619,0.09407871,79204.0,79201.0,0.00189372]
[1731218942321,0.05531736,79203.0,79201.0,0.00189372]
[1731218942511,0.05531736,79202.0,79201.0,0.06299982]
[1731218942712,0.05531736,79202.0,79192.0,0.3608]
[1731218942918,0.02439319,79201.0,79192.0,0.3608]
[1731218943112,0.02439319,79200.0,79198.0,0.33687144]
[1731218943420,0.3608,79210.0,79200.0,0.3608]
[1731218943607,0.05532084,79209.0,79208.0,0.3608]
[1731218944115,0.05531959,79209.0,79208.0,0.3608]
[1731218944419,0.02439472,79209.0,79208.0,0.3608]
[1731218945819,0.02439472,79209.0,79208.0,0.42308578]
[1731218946013,0.8477,79216.0,79208.0,0.42308578]
[1731218946414,0.02439365,79215.0,79208.0,0.37308578]
[1731218946623,0.84842,79216.0,79208.0,0.37308578]
[1731218946914,0.84842,79216.0,79209.0,0.18989949]
[1731218946915,0.05531791,79215.0,79209.0,0.18989949]
[1731218947107,0.02439343,79214.0,79210.0,0.18032]
[1731218947311,0.63654,79216.0,79213.0,0.3608]
[1731218947513,0.6359,79216.0,79213.0,0.3608]
[1731218947712,0.6359,79216.0,79214.0,0.18989949]
[1731218948708,0.6359,79216.0,79214.0,0.16689949]
[1731218948914,0.35415102,79236.0,79214.0,0.16689949]
[1731218948915,0.6359,79235.0,79214.0,0.16689949]
[1731218949114,0.14695102,79222.0,79214.0,0.16689949]
[1731218949315,0.02438765,79221.0,79214.0,0.16689949]
[1731218949515,0.02438765,79221.0,79220.0,0.3608]
[1731218950018,0.45486913,79221.0,79208.0,0.3608]
[1731218950312,0.14695102,79209.0,79202.0,0.18028]
[1731218950518,0.05530978,79208.0,79202.0,0.18028]
[1731218950719,0.69120978,79208.0,79203.0,0.1897676]
[1731218950920,0.05530978,79207.0,79203.0,0.1897676]
[1731218951626,0.05530978,79207.0,79198.0,0.4236462]
[1731218951627,0.05530978,79207.0,79199.0,0.18028]
[1731218951930,0.05530978,79207.0,79198.0,0.54108]
[1731218951931,0.72997657,79207.0,79198.0,0.54108]
[1731218952215,0.09407657,79206.0,79198.0,0.54108]
[1731218952421,0.72997657,79206.0,79198.0,0.54108]
[1731218952613,0.09407657,79205.0,79198.0,0.3608]
[1731218952810,0.05532591,79204.0,79198.0,0.3608]
[1731218953017,0.05532591,79203.0,79198.0,0.3608]
[1731218953614,0.69122591,79203.0,79198.0,0.42319129]
[1731218953922,0.05532591,79202.0,79198.0,0.42319129]
[1731218954118,0.02439696,79201.0,79198.0,0.42319129]
[1731218954422,0.02439696,79200.0,79198.0,0.42319129]
[1731218954718,0.02439696,79199.0,79198.0,0.42319129]
[1731218956815,0.63662,79203.0,79198.0,0.42319129]
[1731218957012,0.02439611,79202.0,79198.0,0.42319129]
[1731218957219,0.02439605,79201.0,79198.0,0.42319129]
[1731218957524,0.02439605,79200.0,79198.0,0.42319129]
[1731218957725,0.02439605,79199.0,79198.0,0.42319129]
[1731218958415,0.02439605,79199.0,79198.0,0.61164377]
[1731218958620,0.66029605,79199.0,79198.0,0.61164377]
[1731218959016,0.6359,79199.0,79198.0,0.97244377]
[1731218959216,0.2114,79220.0,79198.0,1.623276]
[1731218959420,0.2114,79220.0,79219.0,0.3608]
[1731218959624,0.52879087,79220.0,79219.0,0.3608]
[1731218959811,0.52879087,79220.0,79205.0,0.50775102]
[1731218960016,0.02439087,79219.0,79205.0,0.50775102]
[1731218960222,0.02439087,79218.0,79206.0,0.18973499]
[1731218960423,0.50504,79220.0,79206.0,0.18973499]
[1731218960424,0.02439087,79217.0,79206.0,0.18973499]
[1731218960623,0.05531157,79216.0,79212.0,0.3608]
[1731218960821,0.05531157,79215.0,79212.0,0.3608]
[1731218961124,0.50504,79220.0,79213.0,0.18845857]
[1731218961324,0.5044,79220.0,79213.0,0.18845857]
[1731218961732,0.055309,79219.0,79213.0,0.18845857]
[1731218962020,0.055309,79219.0,79217.0,0.3608]
[1731218962322,0.09406408,79218.0,79217.0,0.3608]
[1731218962622,0.09406408,79218.0,79217.0,0.3378]
[1731218962820,0.05530876,79218.0,79217.0,0.3378]
[1731218963022,0.2098,79230.0,79217.0,0.3378]
[1731218963023,0.00064,79236.0,79217.0,0.8279348]
[1731218963221,0.3608,79253.0,79217.0,0.8279348]
[1731218963222,0.197,79249.0,79230.0,0.7216]
[1731218963413,0.197,79249.0,79241.0,0.3608]
[1731218963616,0.18569693,79248.0,79235.0,0.17932]
[1731218963818,0.14695102,79241.0,79231.0,0.1901348]
[1731218964018,0.2147,79240.0,79227.0,0.17928]
[1731218964215,0.4249,79240.0,79227.0,0.17928]
[1731218964422,0.00016383,79236.0,79227.0,0.17928]
[1731218964629,0.00016383,79236.0,79225.0,0.001893]
[1731218965020,0.00016383,79236.0,79227.0,0.19023409]
[1731218965226,0.00016383,79236.0,79226.0,0.19023409]